Cogmind - Beta 12 @@@ ROGUE MODE // 2023.05.15 @ 17:38:57 Player: Mr Goldstein Result: Self-destructed Performance ------------- Evolutions (3) 1500 Regions Visited (4) 800 Robots Destroyed (5) 25 Value Destroyed (88) 88 Prototype IDs (0) 0 Alien Tech Used (0) 0 Bonus (834) 834 TOTAL SCORE: 3247 Bonus ------- Pacifist 834 Cogmind --------- Core Integrity 685/700 Matter 300/300 Energy 1/100 System Corruption 17% Temperature Cool (8) Movement Flying (29) Location -7/Factory Parts ------- > --- POWER (1) -------- (None) > --- PROPULSION (5) --- Flight Unit Flight Unit Flight Unit VTOL Module > --- UTILITY (5) ------ Improved Terrain Scan Processor Launcher Guidance Computer Launcher Guidance Computer Powered Armor > --- WEAPON (2) ------- (None) > --- INVENTORY (5) ---- Micro Nuclear Core Proton Missile Launcher Remote Datajack Peak State ------------ > --- POWER ------------ Micro Nuclear Core > --- PROPULSION ------- Flight Unit Flight Unit Flight Unit > --- UTILITY ---------- Improved Terrain Scan Processor Launcher Guidance Computer Launcher Guidance Computer Powered Armor > --- WEAPON ----------- Proton Missile Launcher > --- INVENTORY -------- Remote Datajack [Rating: 26] Favorites ----------- Power Micro Nuclear Core Power Core Micro Nuclear Core Propulsion Flight Unit Treads Light Treads Flight Unit Flight Unit Utility Launcher Guidance Computer Processor Launcher Guidance Computer Protection Powered Armor Weapon Proton Missile Launcher Ballistic Gun Autogun Launcher Proton Missile Launcher Build | -11 -10 -9 -8 -7 ------- Run | Jun Mat Mat Mat Fac Slots Evolved 6 | . . 2 2 2 Power . | . . . . . Propulsion 3 | . . 1 1 1 Utility 3 | . . 1 1 1 Weapon . | . . . . . Parts Attached 14 | 2 . . 2 10 Power 2 | . . . . 2 Engine . | . . . . . Core 2 | . . . . 2 Reactor . | . . . . . Propulsion 6 | 2 . . . 4 Treads 2 | 2 . . . . Leg . | . . . . . Wheel . | . . . . . Hover . | . . . . . Flight 4 | . . . . 4 Utility 4 | . . . 2 2 Device . | . . . . . Storage . | . . . . . Processor 3 | . . . 2 1 Hackware . | . . . . . Protection 1 | . . . . 1 Artifact . | . . . . . Weapon 2 | . . . . 2 Energy Gun . | . . . . . Energy Cannon . | . . . . . Ballistic Gun 1 | . . . . 1 Ballistic Cannon . | . . . . . Launcher 1 | . . . . 1 Special Weapon . | . . . . . Impact Weapon . | . . . . . Slashing Weapon . | . . . . . Piercing Weapon . | . . . . . Special Melee Weapon . | . . . . . Unidentified Prototypes . | . . . . . Corrupted Parts 2 | . . . . 2 System Corruption 17 | . . . . 17 Parts Lost 1 | . . . 1 . Power . | . . . . . Propulsion 1 | . . . 1 . Utility . | . . . . . Weapon . | . . . . . Highest Loss Streak 1 | . . . 1 . To Critical Strikes . | . . . . . Average Slot Usage (%) 36 | . 28 22 21 54 Treads 12 | . 28 22 14 . Flight 9 | . . . . 24 Processor 10 | . . . 7 20 Protection 2 | . . . . 7 Naked Turns . | . . . . . Heaviest Build 13 | . . . . 13 Greatest Support 20 | 20 3 3 3 16 Greatest Overweight (x) . | . . . . . Average Overweight (x) . | . . . . . Largest Inventory Capacity 5 | 5 5 5 5 5 Average Capacity 5 | 5 5 5 5 5 Most Carried 4 | . 3 3 4 3 Average Carried 1 | . . 3 3 1 Final Capacity 5 | 5 5 5 5 5 Final Carried 4 | . 3 3 4 3 Class Distribution -------------------- 100% | Mutant Dominant Class ---------------- Mutant | -10/Materials Mutant | -9/Materials Mutant | -8/Materials Mutant | -7/Factory Resources | -11 -10 -9 -8 -7 ----------- Run | Jun Mat Mat Mat Fac Matter Collected 349 | 216 . . . 133 Remotely . | . . . . . Salvage Created 198 | . . . . 198 Parts 12 | . . . . 12 Haulers Intercepted . | . . . . . Recyclers Shooed 1 | . . . . 1 Parts Field Recycled . | . . . . . Retrieved Matter . | . . . . . Parts Self-Destructed . | . . . . . Prevented . | . . . . . Kills | -11 -10 -9 -8 -7 ------- Run | Jun Mat Mat Mat Fac Combat Hostiles Destroyed 3 | . . . . 3 AOE 3 | . . . . 3 Classes Destroyed 3 | . . . . 3 Worker 1 | . . . . 1 Recycler 1 | . . . . 1 Swarmer 3 | . . . . 3 Best Kill Streak 5 | . . . . 5 Combat Bots Only 3 | . . . . 3 Max Kills in Single Turn 3 | . . . . 3 Gunslinging . | . . . . . Exploded 2 | . . . . 2 Melee . | . . . . . Uniques/NPCs Destroyed . | . . . . . Combat | -11 -10 -9 -8 -7 -------- Run | Jun Mat Mat Mat Fac Damage Taken 583 | . 151 . 270 162 Core 159 | . 39 . 105 15 Absorbed by Shields . | . . . . . Core Remaining (%) 91 | 100 84 100 80 . Volleys Fired 4 | . . . . 4 Largest 1 | . . . . 1 Hottest 39 | . . . . 39 Shots Fired 4 | . . . . 4 Gun 2 | . . . . 2 Cannon . | . . . . . Launcher 2 | . . . . 2 Special . | . . . . . Kinetic 2 | . . . . 2 Thermal . | . . . . . Explosive . | . . . . . Electromagnetic 2 | . . . . 2 Robot Hit Streak 4 | . . . . 4 Robot Miss Streak . | . . . . . Penetration Max . | . . . . . Secondary Targets . | . . . . . Shots Hit Robots 4 | . . . . 4 Core Hits 7 | . . . . 7 Critical Kills . | . . . . . Critical Parts Destroyed . | . . . . . Critical Strikes . | . . . . . Melee Attacks . | . . . . . Impact . | . . . . . Slashing . | . . . . . Piercing . | . . . . . Sneak Attacks . | . . . . . Combat Hostiles . | . . . . . Follow-up Attacks . | . . . . . Damage Inflicted 231 | . 25 . . 206 Guns 26 | . . . . 26 Cannons . | . . . . . Explosions 180 | . . . . 180 Melee . | . . . . . Ramming 25 | . 25 . . . Kinetic 26 | . . . . 26 Thermal 21 | . . . . 21 Explosive . | . . . . . Electromagnetic 159 | . . . . 159 Impact . | . . . . . Slashing . | . . . . . Piercing . | . . . . . Highest Corruption 17 | . . . 1 17 Average Corruption 5 | . . . 1 15 Corruption Purged . | . . . . . Corruption Blocked . | . . . . . Effects 2 | . . . 1 1 Message Errors 2 | . . . 1 1 Overload Shots . | . . . . . Overflow Damage . | . . . . . Projectiles . | . . . . . Explosions . | . . . . . Melee . | . . . . . Knockbacks . | . . . . . Impact . | . . . . . Kinetic . | . . . . . Secondary . | . . . . . Self-Inflicted Damage 11 | . 11 . . . Shots . | . . . . . Rammed 5 | . 5 . . . Targets Rammed 5 | . 5 . . . Kicked . | . . . . . Crushed . | . . . . . Highest Temperature 1 | . . . . 1 Average Temperature 1 | . . . . 1 Received Heat Transfer 153 | . 54 . 99 . Siege Activations . | . . . . . Robots Corrupted . | . . . . . Combat Hostiles . | . . . . . Parts Fried 1 | . . . . 1 Impact Corruptions . | . . . . . Robots Melted . | . . . . . Combat Hostiles . | . . . . . Parts Melted . | . . . . . Heat Transferred 50 | . . . . 50 Parts Sabotaged . | . . . . . Parts Stolen . | . . . . . Parts Stripped . | . . . . . Power Chain Reactions 1 | . . . . 1 Missiles Intercepted . | . . . . . Alert | -11 -10 -9 -8 -7 ------- Run | Jun Mat Mat Mat Fac Peak Influence 171 | . 30 27 41 171 Initial 14 | . . 12 11 14 Average 43 | . 12 18 28 81 Maximum Alert Level . | . . . . . Low Security (%) 100 | 100 100 100 100 100 Level 1 . | . . . . . Level 2 . | . . . . . Level 3 . | . . . . . Level 4 . | . . . . . Level 5 . | . . . . . High Security . | . . . . . Max Security . | . . . . . Squads Dispatched 2 | . 1 . . 1 Investigation . | . . . . . Extermination . | . . . . . Reinforcement 2 | . 1 . . 1 Assault . | . . . . . Garrison . | . . . . . Intercept . | . . . . . Searches Triggered . | . . . . . Construction Impeded 1 | . . . . 1 Haulers Reinforced . | . . . . . Active Scanning Responses . | . . . . . Cargo Convoy Interrupts . | . . . . . Stealth | -11 -10 -9 -8 -7 --------- Run | Jun Mat Mat Mat Fac Distress Signals 1 | . 1 . . . Communications Jammed . | . . . . . Distress Signals . | . . . . . Times Spotted 26 | . 7 1 7 11 Peak Tracking Total 7 | . 6 1 7 7 Tactical Retreats . | . . . . . Traps | -11 -10 -9 -8 -7 ------- Run | Jun Mat Mat Mat Fac Traps Triggered 1 | . . . 1 . Indirectly . | . . . . . Trap Hack Attempts . | . . . . . Triggered . | . . . . . Disarmed . | . . . . . Reprogrammed . | . . . . . Reused . | . . . . . Traps Extracted . | . . . . . Installed . | . . . . . Triggered . | . . . . . Machines | -11 -10 -9 -8 -7 ---------- Run | Jun Mat Mat Mat Fac Machines Disabled . | . . . . . Max in Single Turn . | . . . . . Machines Repaired . | . . . . . Machines Sabotaged . | . . . . . Overloaded Fab Kills . | . . . . . Hacking | -11 -10 -9 -8 -7 --------- Run | Jun Mat Mat Mat Fac Machines Accessed 1 | . . . . 1 Terminals 1 | . . . . 1 Fabricators . | . . . . . Repair Stations . | . . . . . Recycling Units . | . . . . . Scanalyzers . | . . . . . Garrison Access . | . . . . . Total Hacks 4 | . . . . 4 Successful 2 | . . . . 2 Failed 2 | . . . . 2 Catastrophic . | . . . . . Database Lockouts . | . . . . . Manual 4 | . . . . 4 Terminals 4 | . . . . 4 Fabricators . | . . . . . Repair Stations . | . . . . . Recycling Units . | . . . . . Scanalyzers . | . . . . . Garrison Access . | . . . . . Terminal Hacks 1 | . . . . 1 Branch Access Points 1 | . . . . 1 Fabricator Hacks . | . . . . . Repair Station Hacks . | . . . . . Recycling Unit Hacks . | . . . . . Scanalyzer . | . . . . . Garrison Access Hacks . | . . . . . Unauthorized Hacks 1 | . . . . 1 Terminals 1 | . . . . 1 Botnet 1 | . . . . 1 Fabricators . | . . . . . Repair Stations . | . . . . . Recycling Units . | . . . . . Scanalyzers . | . . . . . Garrison Access . | . . . . . Data Cores Recovered . | . . . . . Used . | . . . . . Hacking Detections 1 | . . . . 1 Full Trace Events . | . . . . . Feedback Events . | . . . . . Feedback Blocked . | . . . . . Robot Schematics Acquired . | . . . . . Robots Built . | . . . . . Authchips . | . . . . . Time . | . . . . . Total Robot Build Rating . | . . . . . Part Schematics Acquired . | . . . . . Parts Built . | . . . . . Authchips . | . . . . . Time . | . . . . . Total Part Build Rating . | . . . . . Parts Repaired . | . . . . . Time . | . . . . . Parts Recycled . | . . . . . Recycled Matter . | . . . . . Retrieved Matter . | . . . . . Retrieved Components . | . . . . . Parts Scanalyzed . | . . . . . Part Schematics Acquired . | . . . . . Parts Damaged . | . . . . . Bothacking | -11 -10 -9 -8 -7 ------------ Run | Jun Mat Mat Mat Fac Used RIF Installer . | . . . . . Robots Hacked . | . . . . . Non-combat . | . . . . . Combat . | . . . . . Robot Hacks Applied . | . . . . . Relay Couplers Released . | . . . . . Fabnet Peak Effective % . | . . . . . Robots Rewired . | . . . . . Allies Hacked . | . . . . . Hacks Repelled . | . . . . . Allies | -11 -10 -9 -8 -7 -------- Run | Jun Mat Mat Mat Fac Total Allies . | . . . . . Largest Group . | . . . . . Highest-Rated Group . | . . . . . Highest-Rated Ally . | . . . . . Total Orders . | . . . . . Ally Attacks . | . . . . . Total Damage . | . . . . . Kills . | . . . . . Allies Corrupted . | . . . . . Allies Melted . | . . . . . Intel | -11 -10 -9 -8 -7 ------- Run | Jun Mat Mat Mat Fac Robot Analysis Total . | . . . . . Derelict Logs Recovered . | . . . . . Drone Launches . | . . . . . Drone Recoveries . | . . . . . Exploration | -11 -10 -9 -8 -7 ------------- Run | Jun Mat Mat Mat Fac Turns Passed 296 | 27 42 41 70 116 Spaces Moved 528 | 30 67 82 132 217 Core 303 | 22 67 82 132 . Treads 8 | 8 . . . . Legs . | . . . . . Wheels . | . . . . . Hover . | . . . . . Flight 217 | . . . . 217 Fastest Speed 29 | 50 50 50 50 29 Average Speed 44 | 79 50 50 50 33 Slowest Speed 160 | 160 50 50 50 34 Overloaded Moves . | . . . . . Propulsion Burnouts . | . . . . . Robots Hopped 3 | . . . . 3 Cave-ins Triggered . | . . . . . Exploration Rate (%) 16 | 2 27 17 31 5 Regions Visited 4 Branch Regions . Pre-discovered Areas . | . . . . . Known Exits Taken . | . . . . . Unknown Exits Taken 4 | 1 1 1 1 . Scrap Searched . | . . . . . Spaces Dug . | . . . . . Terrain Destroyed 3 | . . . . 3 Melee . | . . . . . Projectile . | . . . . . AOE 3 | . . . . 3 Terrain Rammed . | . . . . . Walls Destroyed . | . . . . . Machines Disabled . | . . . . . Actions | -11 -10 -9 -8 -7 --------- Run | Jun Mat Mat Mat Fac Total 573 | 31 74 81 134 253 Wait 20 | . . . . 20 Move 518 | 29 66 81 131 211 Hop 3 | . . . . 3 Pick Up 4 | . 3 . 1 . Fast Attach 10 | 2 . . 2 6 Attach 4 | . . . . 4 Detach 3 | . . . . 3 Swap . | . . . . . Drop 2 | . . . . 2 Fire 4 | . . . . 4 Melee . | . . . . . Ram 5 | . 5 . . . Kick . | . . . . . Crush . | . . . . . Escape Stasis . | . . . . . Rewire . | . . . . . Trap . | . . . . . Miscellaneous . | . . . . . Route ------- -11/Junkyard -10/Materials -9/Materials (discovered 2 exits: *Mat / [*Min]) -8/Materials -7/Factory (discovered 3 exits: Sto / Low x2) History --------- Turn | Location | Event 14 | -11/Junkyard | Discovered new exit (range 15) 28 | -11/Junkyard | Entered Materials 61 | -10/Materials | Discovered new exit (range 7) 70 | -10/Materials | Entered another Materials area 70 | -9/Materials | Evolved 2 slots: Propulsion x1, Utility x1 82 | -9/Materials | Discovered new exit (range 16) 104 | -9/Materials | Met 8R-AWN 107 | -9/Materials | Discovered new exit (range 9) 111 | -9/Materials | Entered another Materials area 111 | -8/Materials | Evolved 2 slots: Propulsion x1, Utility x1 178 | -8/Materials | Discovered new exit (range 5) 181 | -8/Materials | Entered Factory 181 | -7/Factory | Evolved 2 slots: Propulsion x1, Utility x1 189 | -7/Factory | Found Powered Armor 191 | -7/Factory | Identified exit to Storage 191 | -7/Factory | Identified exit to Lower Caves 279 | -7/Factory | System corruption reached 10% 297 | -7/Factory | Self-destructed Last Messages --------------- 00281_ K-01 Serf collects debris. 00282_ HMW#EHLQ E,2H 8VABYH 00283_ U-05 Engineer lays Concrete. 00284_ K-01 Serf collects debris. 00284_ U-05 Engineer lays Concrete. 00284_ Acquired 18 matter. 00285_ C-30 ARC bursts open, deploying its payload. 00285_ L-41 Fighter unfolds itself. 00285_ G-47 Trooper unfolds itself. 00285_ U-05 Engineer destroyed. 00286_ U-05 Engineer lays Concrete. 00287_ R-06 Scavenger inserts Lgt. Ion Engine into recycling unit. 00287_ U-05 Engineer lays Concrete. 00289_ K-01 Serf collects debris. 00289_ Dropped Autogun. 00290_ U-05 Engineer lays Concrete. 00290_ R-06 Scavenger inserts Corrupted VTOL Module into recycling unit. 00291_ U-05 Engineer lays Concrete. 00293_ R-06 Scavenger inserts Corrupted Autogun into recycling unit. 00293_ K-01 Serf collects debris. Map ----- +----------------------------------------------------+ | ?????????????????????????????????????????????????? | | ?????????????????????????????????????????????????? | | ?????????????????????????????????????????????????? | | ?????????????????????????????????????????????????? | | ?????????????????????????????????????????????????? | | ??????????????????????????????????????????????>??? | | ?????????????????????????????????????????????????? | | ?????????????????????????????????????????????????? | | ?????????????????????????????????????????????????? | | ?????????????????????????????????????????????????? | | ???????????????????????#g #?????????????????????? | | ?????????????????????# #???????????????????? | | ?????????????????????#= #???????????????????? | | ?????????????????????# #???????????????????? | | ?????????????????????# Y +???????????????????? | | ?????????????????????? ????????????????????? | | ?????????????????????? ????????????????????? | | ?????????????????????? ????????????????????? | | ??????????????????????# #????????????????????? | | ??????????????????????# ##???????????????????? | | ??????????????????????# T#???????????????????? | | ??????????????????????+ ????????????????????? | | ??????????????????????# #????????????????????? | | ??????????????????????# #???????############## | | ??????????????????????? ????????# | | ????????????????????????#@#?????????# | | ????????????????????????# #?????????# | | ????????????????????????# #?????????# | | ????????????????????????# #?????????# | | ????????????????????????# #?????????# ######## | | ????????????????????????# #??######## #????# | | ????????????????????????# #??# #????# | | ????????????????????????# #??# #????# | | ????????????????????????# #??# #????# | | ????????????????????????# #??# #????# | | ????????????????????????# #??# #????# | | ????????????????????????# #??# ########????# | | ????????????????????????# #?## #???????????# | | ????????????????????#####+### ! #???????????# | | ????????????????????# %%* +???????????# | | ????????????????????# ]] # %! #???????????# | | ????????????????????#! * [ = " #???????????# | | ????????????????????# *] #=%! #???????????### | | ????????????????????# ^ ^^ # #?????????????? | | ????????????????????# """ # #?????????????? | | ????????????????????# "Y # #?????????????? | | ????????????????????# """ # #?????????????? | | ????????????????????# + ^ #?????????????? | | ????????????????????########## #?????????????? | | ?????????????????????????????# #?????????????? | +----------------------------------------------------+ Best States ------------- Heat Dissipation 34 Energy Generation 15 Energy Capacity 150 Matter Stores 300 Matter Capacity 300 Sight Range 16 Terrain Scan Density 110 Armor Coverage 400 Evasion (%) 63 Launcher Accuracy 40 Recoil Reduction 2 Item Schematics ----------------- None Robot Schematics ------------------ None Fabricated ------------ Nothing Alien Tech Used ----------------- None Achievements -------------- None Challenges ------------ None Game ------ Seed CooledDisruptorActivator Manual? 0 Play Time 00:07:31 Cumulative 212.1 hours Start 2023.05.15 @ 17:34:09 End 2023.05.15 @ 17:38:57 Sessions 1 Manual Loads 0 Difficulty Rogue Special Mode None Game No. 623 Rogue 623 Adventurer 0 Explorer 0 Win Type - Total 9 Types 7/0/1/1/0/0/0/0/0 Lore% 82 Gallery% 80 Achievement% 71 Wizard Run 0 Options --------- ASCII 0 Keyboard 0 Movement Numpad Keybinds 0 Fullscreen 1 Font 16/SmallcapsGlow Map View 75x55 Tactical HUD 1 Map Filters NONE Filters NONE Steam 1 RUN: 51efcf10-b6bc-4483-96b2-9358e62d8481